[Event "Titled Tuesday Blitz June 14 Late 2022"]
[White "Vasquez Schroeder, Rodrigo"]
[Black "Estrada Nieto, Julian"]
[WhiteFideId "3400042"]
[BlackFideId "5101018"]
[WhiteElo "2567"]
[BlackElo "2252"]
[Result "1-0"]
[Round "01"]
[TimeControl "180+1"]
[Date "2022.06.15"]
[WhiteClock "0:01:42"]
[BlackClock "0:00:01"]

1. e4 {[%clk 0:03:00]}  e5 {[%clk 0:02:59]} 2. Nf3 {[%clk 0:02:59]}  Nc6 {[%clk 0:02:58]} 3. Bc4 {[%clk 0:02:59]}  Bc5 {[%clk 0:02:57]} 4. c3 {[%clk 0:02:59]}  Nf6 {[%clk 0:02:56]} 5. d3 {[%clk 0:03:00]}  d6 {[%clk 0:02:55]} 6. Bb3 {[%clk 0:03:00]}  a6 {[%clk 0:02:54]} 7. h3 {[%clk 0:03:00]}  Ba7 {[%clk 0:02:53]} 8. Nbd2 {[%clk 0:02:49]}  h6 {[%clk 0:02:52]} 9. Nf1 {[%clk 0:02:49]}  Be6 {[%clk 0:02:50]} 10. Ng3 {[%clk 0:02:49]}  d5 {[%clk 0:02:49]} 11. Qe2 {[%clk 0:02:48]}  Qd7 {[%clk 0:02:32]} 12. Be3 {[%clk 0:02:44]}  d4 {[%clk 0:02:14]} 13. Bxe6 {[%clk 0:02:42]}  fxe6 {[%clk 0:02:05]} 14. cxd4 {[%clk 0:02:39]}  Bxd4 {[%clk 0:02:05]} 15. O-O {[%clk 0:02:39]}  O-O {[%clk 0:01:59]} 16. Rac1 {[%clk 0:02:37]}  Rad8 {[%clk 0:01:54]} 17. Rfd1 {[%clk 0:02:37]}  Rf7 {[%clk 0:01:42]} 18. a3 {[%clk 0:02:28]}  Qd6 {[%clk 0:01:40]} 19. b4 {[%clk 0:02:27]}  Rdf8 {[%clk 0:01:32]} 20. Rc4 {[%clk 0:02:23]}  Bxe3 {[%clk 0:01:25]} 21. fxe3 {[%clk 0:02:22]}  Nd7 {[%clk 0:01:21]} 22. Rdc1 {[%clk 0:02:19]}  Nb6 {[%clk 0:01:18]} 23. R4c3 {[%clk 0:02:17]}  Rd7 {[%clk 0:01:11]} 24. Rd1 {[%clk 0:02:16]}  Na4 {[%clk 0:01:02]} 25. Rcc1 {[%clk 0:02:13]}  a5 {[%clk 0:00:42]} 26. Qc2 {[%clk 0:02:08]}  Nb6 {[%clk 0:00:36]} 27. b5 {[%clk 0:02:08]}  Na7 {[%clk 0:00:35]} 28. Qc5 {[%clk 0:02:06]}  Qxc5 {[%clk 0:00:20]} 29. Rxc5 {[%clk 0:02:05]}  Na4 {[%clk 0:00:11]} 30. Rxe5 {[%clk 0:01:58]}  Rd6 {[%clk 0:00:11]} 31. d4 {[%clk 0:01:54]}  Nc3 {[%clk 0:00:10]} 32. Rc1 {[%clk 0:01:52]}  Ncxb5 {[%clk 0:00:08]} 33. a4 {[%clk 0:01:52]}  Na3 {[%clk 0:00:05]} 34. Rc3 {[%clk 0:01:46]}  Nb1 {[%clk 0:00:04]} 35. Rxc7 {[%clk 0:01:45]}  Rb6 {[%clk 0:00:04]} 36. Nh5 {[%clk 0:01:43]}  Nc6 {[%clk 0:00:01]} 37. Rxg7+ {[%clk 0:01:42]} 1-0


[Site "https://www.chess.com"]

[Event "Titled Tuesday Blitz June 14 Late 2022"]
[White "Vivas Zamora, Fabian Ernesto"]
[Black "Sarana, Alexey"]
[WhiteFideId "3902480"]
[BlackFideId "24133795"]
[WhiteElo "2014"]
[BlackElo "2666"]
[Result "0-1"]
[Round "01"]
[TimeControl "180+1"]
[Date "2022.06.14"]
[WhiteClock "0:00:02"]
[BlackClock "0:00:57"]

1. c4 {[%clk 0:02:52]}  e6 {[%clk 0:02:56]} 2. Nf3 {[%clk 0:02:51]}  d5 {[%clk 0:02:56]} 3. b3 {[%clk 0:02:51]}  c5 {[%clk 0:02:54]} 4. cxd5 {[%clk 0:02:46]}  exd5 {[%clk 0:02:55]} 5. e3 {[%clk 0:02:44]}  Nf6 {[%clk 0:02:53]} 6. Bb2 {[%clk 0:02:44]}  Nc6 {[%clk 0:02:54]} 7. Bb5 {[%clk 0:02:43]}  Bd6 {[%clk 0:02:53]} 8. O-O {[%clk 0:02:37]}  O-O {[%clk 0:02:52]} 9. d4 {[%clk 0:02:35]}  a6 {[%clk 0:02:43]} 10. Bxc6 {[%clk 0:02:22]}  bxc6 {[%clk 0:02:44]} 11. dxc5 {[%clk 0:02:22]}  Bxc5 {[%clk 0:02:45]} 12. Nc3 {[%clk 0:01:52]}  Bg4 {[%clk 0:02:43]} 13. h3 {[%clk 0:01:50]}  Bh5 {[%clk 0:02:43]} 14. Rc1 {[%clk 0:01:40]}  Bd6 {[%clk 0:02:39]} 15. Na4 {[%clk 0:01:39]}  Rc8 {[%clk 0:02:35]} 16. Qd4 {[%clk 0:01:15]}  Bxf3 {[%clk 0:02:28]} 17. gxf3 {[%clk 0:01:16]}  Re8 {[%clk 0:02:28]} 18. Rc2 {[%clk 0:01:00]}  c5 {[%clk 0:01:56]} 19. Qh4 {[%clk 0:00:48]}  Re6 {[%clk 0:01:37]} 20. f4 {[%clk 0:00:33]}  d4 {[%clk 0:01:30]} 21. exd4 {[%clk 0:00:23]}  cxd4 {[%clk 0:01:31]} 22. Rxc8 {[%clk 0:00:20]}  Qxc8 {[%clk 0:01:32]} 23. Bxd4 {[%clk 0:00:21]}  Nd5 {[%clk 0:01:26]} 24. f5 {[%clk 0:00:13]}  Rh6 {[%clk 0:01:13]} 25. Qg5 {[%clk 0:00:10]}  Nf6 {[%clk 0:01:10]} 26. Rc1 {[%clk 0:00:10]}  Qe8 {[%clk 0:01:06]} 27. Bxf6 {[%clk 0:00:06]}  Rxf6 {[%clk 0:01:06]} 28. Rc3 {[%clk 0:00:06]}  h6 {[%clk 0:01:03]} 29. Qg4 {[%clk 0:00:04]}  Qe5 {[%clk 0:01:01]} 30. Rg3 {[%clk 0:00:03]}  Rxf5 {[%clk 0:00:58]} 31. Rg2 {[%clk 0:00:02]}  Qe1# {[%clk 0:00:57]} 0-1


[Site "https://www.chess.com"]

[Event "Titled Tuesday Blitz June 14 Late 2022"]
[White "Yuan, Qingyu"]
[Black "Wachinger, Guenther"]
[WhiteFideId "8609772"]
[BlackFideId "4604261"]
[WhiteElo "2359"]
[BlackElo "2212"]
[Result "1/2-1/2"]
[Round "01"]
[TimeControl "180+1"]
[Date "2022.06.15"]
[WhiteClock "0:00:04"]
[BlackClock "0:00:06"]

1. e4 {[%clk 0:02:37]}  c5 {[%clk 0:02:59]} 2. Nf3 {[%clk 0:02:37]}  d6 {[%clk 0:02:50]} 3. Bb5+ {[%clk 0:02:36]}  Bd7 {[%clk 0:02:50]} 4. c4 {[%clk 0:02:36]}  Nf6 {[%clk 0:02:49]} 5. Nc3 {[%clk 0:02:36]}  g6 {[%clk 0:02:49]} 6. Bxd7+ {[%clk 0:02:35]}  Nbxd7 {[%clk 0:02:48]} 7. O-O {[%clk 0:02:32]}  Bg7 {[%clk 0:02:48]} 8. d3 {[%clk 0:02:32]}  O-O {[%clk 0:02:48]} 9. h3 {[%clk 0:02:30]}  a6 {[%clk 0:02:48]} 10. Be3 {[%clk 0:02:29]}  Rb8 {[%clk 0:02:48]} 11. d4 {[%clk 0:02:26]}  cxd4 {[%clk 0:02:46]} 12. Nxd4 {[%clk 0:02:26]}  Rc8 {[%clk 0:02:45]} 13. Qe2 {[%clk 0:02:20]}  Qc7 {[%clk 0:02:43]} 14. Rac1 {[%clk 0:02:14]}  Qxc4 {[%clk 0:02:33]} 15. Nd5 {[%clk 0:01:47]}  Qxe2 {[%clk 0:02:32]} 16. Nxe7+ {[%clk 0:01:47]}  Kh8 {[%clk 0:02:32]} 17. Nxe2 {[%clk 0:01:48]}  Rxc1 {[%clk 0:02:32]} 18. Rxc1 {[%clk 0:01:47]}  Nxe4 {[%clk 0:02:32]} 19. b3 {[%clk 0:01:42]}  Ndc5 {[%clk 0:02:16]} 20. Nd5 {[%clk 0:01:27]}  f5 {[%clk 0:02:12]} 21. f3 {[%clk 0:01:25]}  Nf6 {[%clk 0:02:08]} 22. Nxf6 {[%clk 0:01:22]}  Bxf6 {[%clk 0:02:06]} 23. Bxc5 {[%clk 0:01:23]}  dxc5 {[%clk 0:02:04]} 24. Rxc5 {[%clk 0:01:24]}  Rd8 {[%clk 0:01:47]} 25. Kf1 {[%clk 0:01:24]}  Rd1+ {[%clk 0:01:44]} 26. Kf2 {[%clk 0:01:24]}  Rd2 {[%clk 0:01:45]} 27. Rc8+ {[%clk 0:01:22]}  Kg7 {[%clk 0:01:45]} 28. a4 {[%clk 0:01:14]}  Bd4+ {[%clk 0:01:34]} 29. Ke1 {[%clk 0:01:12]}  Be3 {[%clk 0:01:34]} 30. Rc7+ {[%clk 0:01:01]}  Kh6 {[%clk 0:01:33]} 31. Rxb7 {[%clk 0:00:52]}  f4 {[%clk 0:01:32]} 32. h4 {[%clk 0:00:44]}  Ra2 {[%clk 0:01:27]} 33. Kd1 {[%clk 0:00:43]}  Rd2+ {[%clk 0:01:24]} 34. Ke1 {[%clk 0:00:42]}  Ra2 {[%clk 0:01:25]} 35. Rd7 {[%clk 0:00:34]}  Ra1+ {[%clk 0:01:22]} 36. Rd1 {[%clk 0:00:34]}  Bf2+ {[%clk 0:01:10]} 37. Kd2 {[%clk 0:00:33]}  Be3+ {[%clk 0:01:09]} 38. Kc2 {[%clk 0:00:27]}  Ra2+ {[%clk 0:01:08]} 39. Kd3 {[%clk 0:00:27]}  Rb2 {[%clk 0:01:06]} 40. Nd4 {[%clk 0:00:17]}  Bxd4 {[%clk 0:01:03]} 41. Kxd4 {[%clk 0:00:18]}  Rxb3 {[%clk 0:01:03]} 42. Ke4 {[%clk 0:00:17]}  Rb4+ {[%clk 0:00:38]} 43. Rd4 {[%clk 0:00:17]}  Rxd4+ {[%clk 0:00:38]} 44. Kxd4 {[%clk 0:00:18]}  Kh5 {[%clk 0:00:39]} 45. Ke4 {[%clk 0:00:10]}  Kxh4 {[%clk 0:00:36]} 46. Kxf4 {[%clk 0:00:10]}  a5 {[%clk 0:00:32]} 47. g4 {[%clk 0:00:05]}  h5 {[%clk 0:00:27]} 48. g5 {[%clk 0:00:04]}  Kh3 {[%clk 0:00:27]} 49. Ke5 {[%clk 0:00:04]}  Kg3 {[%clk 0:00:25]} 50. f4 {[%clk 0:00:04]}  h4 {[%clk 0:00:26]} 51. f5 {[%clk 0:00:04]}  h3 {[%clk 0:00:26]} 52. fxg6 {[%clk 0:00:05]}  h2 {[%clk 0:00:27]} 53. g7 {[%clk 0:00:06]}  h1=Q {[%clk 0:00:27]} 54. g8=Q {[%clk 0:00:06]}  Qa1+ {[%clk 0:00:23]} 55. Kf5 {[%clk 0:00:06]}  Qxa4 {[%clk 0:00:21]} 56. Qb8+ {[%clk 0:00:05]}  Kh3 {[%clk 0:00:19]} 57. g6 {[%clk 0:00:05]}  Qg4+ {[%clk 0:00:16]} 58. Kf6 {[%clk 0:00:05]}  a4 {[%clk 0:00:11]} 59. g7 {[%clk 0:00:03]}  Qf3+ {[%clk 0:00:09]} 60. Kg6 {[%clk 0:00:03]}  Qg4+ {[%clk 0:00:09]} 61. Kf7 {[%clk 0:00:03]}  Qf5+ {[%clk 0:00:09]} 62. Ke7 {[%clk 0:00:04]}  Qe4+ {[%clk 0:00:09]} 63. Kf6 {[%clk 0:00:03]}  Qf3+ {[%clk 0:00:08]} 64. Ke6 {[%clk 0:00:04]}  Qg4+ {[%clk 0:00:05]} 65. Kf6 {[%clk 0:00:04]}  Qf3+ {[%clk 0:00:06]} 1/2-1/2


[Site "https://www.chess.com"]

[Event "Titled Tuesday Blitz June 14 Late 2022"]
[White "Zherebtsova, Alexandra"]
[Black "Guzman, Christopher"]
[WhiteFideId "24129518"]
[BlackFideId "6405096"]
[WhiteElo "2025"]
[BlackElo "2244"]
[Result "1-0"]
[Round "01"]
[TimeControl "180+1"]
[Date "2022.06.15"]
[WhiteClock "0:00:11"]
[BlackClock "0:00:09"]

1. d4 {[%clk 0:02:55]}  Nf6 {[%clk 0:02:55]} 2. Nf3 {[%clk 0:02:55]}  e6 {[%clk 0:02:54]} 3. c4 {[%clk 0:02:55]}  b6 {[%clk 0:02:54]} 4. g3 {[%clk 0:02:53]}  Bb7 {[%clk 0:02:55]} 5. Bg2 {[%clk 0:02:53]}  Be7 {[%clk 0:02:55]} 6. O-O {[%clk 0:02:53]}  O-O {[%clk 0:02:56]} 7. b3 {[%clk 0:02:54]}  a5 {[%clk 0:02:55]} 8. a3 {[%clk 0:02:53]}  d5 {[%clk 0:02:53]} 9. Bb2 {[%clk 0:02:53]}  Nbd7 {[%clk 0:02:52]} 10. Nbd2 {[%clk 0:02:52]}  Rc8 {[%clk 0:02:52]} 11. cxd5 {[%clk 0:02:50]}  exd5 {[%clk 0:02:50]} 12. Ne5 {[%clk 0:02:41]}  Bd6 {[%clk 0:02:50]} 13. e3 {[%clk 0:02:38]}  Qe7 {[%clk 0:02:49]} 14. Nec4 {[%clk 0:02:35]}  Ne4 {[%clk 0:02:40]} 15. Nxd6 {[%clk 0:02:34]}  Qxd6 {[%clk 0:02:40]} 16. Rc1 {[%clk 0:02:23]}  Rfe8 {[%clk 0:02:39]} 17. Nxe4 {[%clk 0:02:12]}  dxe4 {[%clk 0:02:38]} 18. Qc2 {[%clk 0:02:04]}  f5 {[%clk 0:02:34]} 19. Rfd1 {[%clk 0:01:58]}  Bd5 {[%clk 0:02:35]} 20. Bf1 {[%clk 0:01:43]}  Nf6 {[%clk 0:02:32]} 21. Bb5 {[%clk 0:01:40]}  c6 {[%clk 0:02:26]} 22. Be2 {[%clk 0:01:35]}  Qe6 {[%clk 0:02:19]} 23. Bc4 {[%clk 0:01:34]}  Re7 {[%clk 0:02:16]} 24. b4 {[%clk 0:01:29]}  axb4 {[%clk 0:02:08]} 25. axb4 {[%clk 0:01:29]}  Rec7 {[%clk 0:01:39]} 26. Ba6 {[%clk 0:01:23]}  Ra8 {[%clk 0:01:37]} 27. Qe2 {[%clk 0:01:19]}  Rca7 {[%clk 0:01:13]} 28. b5 {[%clk 0:01:13]}  h6 {[%clk 0:01:01]} 29. Rd2 {[%clk 0:01:11]}  Kh7 {[%clk 0:01:00]} 30. Rdc2 {[%clk 0:01:05]}  Qe7 {[%clk 0:00:48]} 31. Rc3 {[%clk 0:01:00]}  Qf7 {[%clk 0:00:43]} 32. Qd1 {[%clk 0:00:50]}  Qc7 {[%clk 0:00:42]} 33. Rxc6 {[%clk 0:00:48]}  Bxc6 {[%clk 0:00:42]} 34. Rxc6 {[%clk 0:00:48]}  Qd7 {[%clk 0:00:41]} 35. Qc2 {[%clk 0:00:39]}  Nd5 {[%clk 0:00:41]} 36. Ba3 {[%clk 0:00:38]}  Rc7 {[%clk 0:00:36]} 37. Kg2 {[%clk 0:00:30]}  Raa7 {[%clk 0:00:22]} 38. h4 {[%clk 0:00:24]}  Rxc6 {[%clk 0:00:22]} 39. bxc6 {[%clk 0:00:23]}  Qc7 {[%clk 0:00:22]} 40. Qc4 {[%clk 0:00:13]}  Ne7 {[%clk 0:00:19]} 41. d5 {[%clk 0:00:14]}  Nxd5 {[%clk 0:00:16]} 42. Qxd5 {[%clk 0:00:13]}  Rxa6 {[%clk 0:00:17]} 43. Qxf5+ {[%clk 0:00:13]}  g6 {[%clk 0:00:17]} 44. Qd7+ {[%clk 0:00:11]}  Qxd7 {[%clk 0:00:15]} 45. cxd7 {[%clk 0:00:12]}  Ra8 {[%clk 0:00:09]} 46. Be7 {[%clk 0:00:11]} 1-0


[Site "https://www.chess.com"]

[Event "Titled Tuesday Blitz June 14 Late 2022"]
[White "Zhou, Qiyu"]
[Black "Lashkin, Jegor"]
[WhiteFideId "505161"]
[BlackFideId "13907808"]
[WhiteElo "1925"]
[BlackElo "2368"]
[Result "0-1"]
[Round "01"]
[TimeControl "180+1"]
[Date "2022.06.15"]
[WhiteClock "0:00:02"]
[BlackClock "0:00:08"]

1. e4 {[%clk 0:02:40]}  c5 {[%clk 0:02:58]} 2. Nf3 {[%clk 0:02:29]}  d6 {[%clk 0:02:59]} 3. d4 {[%clk 0:02:28]}  cxd4 {[%clk 0:03:00]} 4. Nxd4 {[%clk 0:02:28]}  Nf6 {[%clk 0:03:00]} 5. Nc3 {[%clk 0:02:27]}  a6 {[%clk 0:03:01]} 6. Bg5 {[%clk 0:02:18]}  e6 {[%clk 0:03:01]} 7. Qd2 {[%clk 0:02:18]}  h6 {[%clk 0:03:00]} 8. Be3 {[%clk 0:02:14]}  Ng4 {[%clk 0:03:00]} 9. O-O-O {[%clk 0:02:13]}  Nxe3 {[%clk 0:03:00]} 10. Qxe3 {[%clk 0:02:13]}  Nc6 {[%clk 0:03:01]} 11. Kb1 {[%clk 0:02:11]}  Be7 {[%clk 0:03:01]} 12. f4 {[%clk 0:02:11]}  O-O {[%clk 0:02:55]} 13. g4 {[%clk 0:02:10]}  Qb6 {[%clk 0:02:35]} 14. Qg1 {[%clk 0:01:53]}  Nxd4 {[%clk 0:02:32]} 15. Qxd4 {[%clk 0:01:49]}  Qxd4 {[%clk 0:02:27]} 16. Rxd4 {[%clk 0:01:50]}  b5 {[%clk 0:02:14]} 17. Bg2 {[%clk 0:01:49]}  Bb7 {[%clk 0:02:14]} 18. h4 {[%clk 0:01:40]}  g5 {[%clk 0:02:02]} 19. hxg5 {[%clk 0:01:38]}  hxg5 {[%clk 0:02:02]} 20. f5 {[%clk 0:01:35]}  Kg7 {[%clk 0:02:01]} 21. Rd3 {[%clk 0:01:21]}  Rh8 {[%clk 0:01:58]} 22. Rdh3 {[%clk 0:01:09]}  Rxh3 {[%clk 0:01:57]} 23. Rxh3 {[%clk 0:01:10]}  Bf6 {[%clk 0:01:58]} 24. Ne2 {[%clk 0:01:07]}  exf5 {[%clk 0:01:41]} 25. gxf5 {[%clk 0:01:05]}  Be5 {[%clk 0:01:40]} 26. Rh5 {[%clk 0:00:58]}  f6 {[%clk 0:01:25]} 27. c3 {[%clk 0:00:54]}  Re8 {[%clk 0:01:21]} 28. Kc2 {[%clk 0:00:50]}  a5 {[%clk 0:00:55]} 29. Kd3 {[%clk 0:00:49]}  b4 {[%clk 0:00:55]} 30. Nd4 {[%clk 0:00:47]}  bxc3 {[%clk 0:00:47]} 31. bxc3 {[%clk 0:00:36]}  Ba6+ {[%clk 0:00:46]} 32. Ke3 {[%clk 0:00:34]}  Bc4 {[%clk 0:00:42]} 33. a3 {[%clk 0:00:13]}  Bf4+ {[%clk 0:00:30]} 34. Kf2 {[%clk 0:00:11]}  Bc1 {[%clk 0:00:23]} 35. a4 {[%clk 0:00:09]}  Bd2 {[%clk 0:00:19]} 36. Ne2 {[%clk 0:00:08]}  Bb3 {[%clk 0:00:16]} 37. Nd4 {[%clk 0:00:05]}  Bc4 {[%clk 0:00:10]} 38. Ne2 {[%clk 0:00:05]}  d5 {[%clk 0:00:10]} 39. Rh2 {[%clk 0:00:03]}  dxe4 {[%clk 0:00:10]} 40. Nd4 {[%clk 0:00:02]}  e3+ {[%clk 0:00:10]} 41. Kg3 {[%clk 0:00:02]}  e2 {[%clk 0:00:08]} 0-1


[Site "https://www.chess.com"]

[Event "Titled Tuesday Blitz June 14 Late 2022"]
[White "Zhurbinsky, David"]
[Black "Wang, Isaac"]
[WhiteFideId "2072904"]
[BlackFideId "30977185"]
[WhiteElo "2561"]
[BlackElo "2199"]
[Result "0-1"]
[Round "01"]
[TimeControl "180+1"]
[Date "2022.06.15"]
[WhiteClock "0:00:19"]
[BlackClock "0:00:29"]

1. e4 {[%clk 0:02:56]}  c5 {[%clk 0:02:57]} 2. Nf3 {[%clk 0:02:56]}  Nc6 {[%clk 0:02:56]} 3. c4 {[%clk 0:02:55]}  d6 {[%clk 0:02:55]} 4. d4 {[%clk 0:02:55]}  cxd4 {[%clk 0:02:55]} 5. Nxd4 {[%clk 0:02:56]}  Nf6 {[%clk 0:02:53]} 6. Nc3 {[%clk 0:02:55]}  e5 {[%clk 0:02:52]} 7. Nc2 {[%clk 0:02:54]}  Be7 {[%clk 0:02:51]} 8. Be2 {[%clk 0:02:55]}  O-O {[%clk 0:02:51]} 9. Be3 {[%clk 0:02:55]}  Be6 {[%clk 0:02:51]} 10. O-O {[%clk 0:02:56]}  a6 {[%clk 0:02:49]} 11. Rc1 {[%clk 0:02:56]}  Qd7 {[%clk 0:02:44]} 12. f3 {[%clk 0:02:50]}  Rad8 {[%clk 0:02:33]} 13. b3 {[%clk 0:02:39]}  Ne8 {[%clk 0:02:32]} 14. Qd2 {[%clk 0:02:33]}  f5 {[%clk 0:02:32]} 15. exf5 {[%clk 0:02:34]}  Bxf5 {[%clk 0:02:31]} 16. Nd5 {[%clk 0:02:30]}  Nf6 {[%clk 0:02:28]} 17. Nb6 {[%clk 0:02:15]}  Qe6 {[%clk 0:02:24]} 18. Bf2 {[%clk 0:01:44]}  Kh8 {[%clk 0:02:18]} 19. Ne3 {[%clk 0:01:39]}  Bg6 {[%clk 0:02:15]} 20. Ned5 {[%clk 0:01:26]}  Nb8 {[%clk 0:02:10]} 21. Nc7 {[%clk 0:01:08]}  Qf7 {[%clk 0:02:06]} 22. Rcd1 {[%clk 0:00:55]}  Nbd7 {[%clk 0:02:02]} 23. Nbd5 {[%clk 0:00:48]}  Nxd5 {[%clk 0:01:58]} 24. cxd5 {[%clk 0:00:43]}  Rc8 {[%clk 0:01:52]} 25. Ne6 {[%clk 0:00:40]}  Rfe8 {[%clk 0:01:51]} 26. Rc1 {[%clk 0:00:36]}  Nf8 {[%clk 0:01:47]} 27. Nc7 {[%clk 0:00:29]}  Red8 {[%clk 0:01:42]} 28. f4 {[%clk 0:00:20]}  Rd7 {[%clk 0:01:28]} 29. Bg4 {[%clk 0:00:16]}  Bf5 {[%clk 0:01:22]} 30. Bxf5 {[%clk 0:00:14]}  Qxf5 {[%clk 0:01:22]} 31. fxe5 {[%clk 0:00:13]}  Rdxc7 {[%clk 0:01:17]} 32. Rxc7 {[%clk 0:00:14]}  Rxc7 {[%clk 0:01:18]} 33. Bb6 {[%clk 0:00:11]}  Qc2 {[%clk 0:01:09]} 34. Qf4 {[%clk 0:00:05]}  Rc8 {[%clk 0:01:06]} 35. exd6 {[%clk 0:00:06]}  Bf6 {[%clk 0:01:06]} 36. Bc7 {[%clk 0:00:03]}  Qc5+ {[%clk 0:01:01]} 37. Kh1 {[%clk 0:00:04]}  Qxd5 {[%clk 0:01:00]} 38. Qg4 {[%clk 0:00:04]}  Qe6 {[%clk 0:00:58]} 39. Qf3 {[%clk 0:00:02]}  Qd7 {[%clk 0:00:58]} 40. Qxb7 {[%clk 0:00:03]}  Ne6 {[%clk 0:00:58]} 41. Qxa6 {[%clk 0:00:03]}  Nxc7 {[%clk 0:00:58]} 42. dxc7 {[%clk 0:00:04]}  Qxc7 {[%clk 0:00:59]} 43. Qe6 {[%clk 0:00:04]}  h6 {[%clk 0:00:59]} 44. Re1 {[%clk 0:00:04]}  Qc1 {[%clk 0:00:57]} 45. h3 {[%clk 0:00:04]}  Qc7 {[%clk 0:00:57]} 46. Qf5 {[%clk 0:00:04]}  Rd8 {[%clk 0:00:56]} 47. a4 {[%clk 0:00:04]}  Qc3 {[%clk 0:00:55]} 48. Rb1 {[%clk 0:00:03]}  Re8 {[%clk 0:00:51]} 49. Qf2 {[%clk 0:00:02]}  Bd4 {[%clk 0:00:50]} 50. Qh4 {[%clk 0:00:02]}  Bf6 {[%clk 0:00:46]} 51. Qf2 {[%clk 0:00:02]}  Qd3 {[%clk 0:00:46]} 52. Rf1 {[%clk 0:00:02]}  Re2 {[%clk 0:00:44]} 53. Qf4 {[%clk 0:00:01]}  Qxb3 {[%clk 0:00:40]} 54. Qg4 {[%clk 0:00:02]}  Qe6 {[%clk 0:00:36]} 55. Qg6 {[%clk 0:00:02]}  Re1 {[%clk 0:00:35]} 56. Rg1 {[%clk 0:00:01]}  Rxg1+ {[%clk 0:00:35]} 57. Kxg1 {[%clk 0:00:02]}  Qe1+ {[%clk 0:00:35]} 58. Kh2 {[%clk 0:00:03]}  Be5+ {[%clk 0:00:35]} 59. g3 {[%clk 0:00:02]}  Qf2+ {[%clk 0:00:35]} 60. Kh1 {[%clk 0:00:03]}  Qxg3 {[%clk 0:00:28]} 61. Qxg3 {[%clk 0:00:03]}  Bxg3 {[%clk 0:00:29]} 62. a5 {[%clk 0:00:04]}  Bb8 {[%clk 0:00:30]} 63. a6 {[%clk 0:00:04]}  Ba7 {[%clk 0:00:30]} 64. Kg2 {[%clk 0:00:05]}  Kg8 {[%clk 0:00:31]} 65. Kf3 {[%clk 0:00:06]}  Kf7 {[%clk 0:00:32]} 66. Ke4 {[%clk 0:00:07]}  Ke6 {[%clk 0:00:32]} 67. h4 {[%clk 0:00:07]}  g5 {[%clk 0:00:30]} 68. h5 {[%clk 0:00:08]}  Kf6 {[%clk 0:00:30]} 69. Kf3 {[%clk 0:00:07]}  Kf5 {[%clk 0:00:31]} 70. Kg3 {[%clk 0:00:08]}  g4 {[%clk 0:00:30]} 71. Kh4 {[%clk 0:00:08]}  Bb8 {[%clk 0:00:26]} 72. a7 {[%clk 0:00:07]}  Bxa7 {[%clk 0:00:26]} 73. Kg3 {[%clk 0:00:07]}  Kg5 {[%clk 0:00:27]} 74. Kg2 {[%clk 0:00:08]}  Kxh5 {[%clk 0:00:28]} 75. Kg3 {[%clk 0:00:08]}  Kg5 {[%clk 0:00:28]} 76. Kg2 {[%clk 0:00:09]}  h5 {[%clk 0:00:29]} 77. Kg3 {[%clk 0:00:10]}  h4+ {[%clk 0:00:30]} 78. Kg2 {[%clk 0:00:11]}  Kf4 {[%clk 0:00:30]} 79. Kh2 {[%clk 0:00:11]}  g3+ {[%clk 0:00:31]} 80. Kg2 {[%clk 0:00:12]}  Kg4 {[%clk 0:00:30]} 81. Kh1 {[%clk 0:00:13]}  Bg1 {[%clk 0:00:29]} 82. Kg2 {[%clk 0:00:14]}  h3+ {[%clk 0:00:29]} 83. Kh1 {[%clk 0:00:15]}  g2+ {[%clk 0:00:28]} 84. Kxg1 {[%clk 0:00:15]}  Kf3 {[%clk 0:00:27]} 85. Kh2 {[%clk 0:00:15]}  Kf2 {[%clk 0:00:27]} 86. Kxh3 {[%clk 0:00:16]}  g1=Q {[%clk 0:00:28]} 87. Kh4 {[%clk 0:00:17]}  Kf3 {[%clk 0:00:28]} 88. Kh5 {[%clk 0:00:18]}  Kf4 {[%clk 0:00:29]} 89. Kh6 {[%clk 0:00:19]}  Kf5 {[%clk 0:00:29]} 90. Kh5 {[%clk 0:00:19]}  Qh1# {[%clk 0:00:29]} 0-1


[Site "https://www.chess.com"]

[Event "Titled Tuesday Blitz June 14 Late 2022"]
[White "Zierk, Steven"]
[Black "Omariev, Maksim"]
[WhiteFideId "2034255"]
[BlackFideId "4193423"]
[WhiteElo "2494"]
[BlackElo "2492"]
[Result "1-0"]
[Round "01"]
[TimeControl "180+1"]
[Date "2022.06.14"]
[WhiteClock "0:01:03"]
[BlackClock "0:00:01"]

1. b3 {[%clk 0:02:59]}  d5 {[%clk 0:02:53]} 2. Bb2 {[%clk 0:02:58]}  c5 {[%clk 0:02:44]} 3. e3 {[%clk 0:02:57]}  Nf6 {[%clk 0:02:40]} 4. Nf3 {[%clk 0:02:56]}  Nc6 {[%clk 0:02:39]} 5. Bb5 {[%clk 0:02:56]}  Bd7 {[%clk 0:02:39]} 6. c4 {[%clk 0:02:51]}  a6 {[%clk 0:02:36]} 7. Bxc6 {[%clk 0:02:50]}  Bxc6 {[%clk 0:02:36]} 8. Ne5 {[%clk 0:02:50]}  Rc8 {[%clk 0:02:34]} 9. O-O {[%clk 0:02:46]}  e6 {[%clk 0:02:34]} 10. d3 {[%clk 0:02:44]}  Bd6 {[%clk 0:02:24]} 11. Nd2 {[%clk 0:02:43]}  O-O {[%clk 0:02:24]} 12. f4 {[%clk 0:02:42]}  b5 {[%clk 0:02:20]} 13. Ndf3 {[%clk 0:02:35]}  Ba8 {[%clk 0:02:14]} 14. cxb5 {[%clk 0:02:12]}  axb5 {[%clk 0:02:14]} 15. a4 {[%clk 0:02:13]}  bxa4 {[%clk 0:01:23]} 16. bxa4 {[%clk 0:02:14]}  c4 {[%clk 0:01:23]} 17. Ba3 {[%clk 0:02:08]}  cxd3 {[%clk 0:01:15]} 18. Qxd3 {[%clk 0:02:05]}  Ne4 {[%clk 0:01:13]} 19. Rfc1 {[%clk 0:01:55]}  Qa5 {[%clk 0:01:03]} 20. Nd7 {[%clk 0:01:46]}  Rxc1+ {[%clk 0:00:50]} 21. Rxc1 {[%clk 0:01:45]}  Rd8 {[%clk 0:00:43]} 22. Bxd6 {[%clk 0:01:43]}  Nxd6 {[%clk 0:00:42]} 23. Ng5 {[%clk 0:01:42]}  Ne4 {[%clk 0:00:34]} 24. Nxe4 {[%clk 0:01:38]}  dxe4 {[%clk 0:00:35]} 25. Qd4 {[%clk 0:01:34]}  Bc6 {[%clk 0:00:21]} 26. Qb6 {[%clk 0:01:28]}  Qxb6 {[%clk 0:00:02]} 27. Nxb6 {[%clk 0:01:28]}  Bd5 {[%clk 0:00:02]} 28. a5 {[%clk 0:01:14]}  Kf8 {[%clk 0:00:02]} 29. a6 {[%clk 0:01:13]}  Ke7 {[%clk 0:00:02]} 30. Rc7+ {[%clk 0:01:10]}  Kd6 {[%clk 0:00:01]} 31. Rxf7 {[%clk 0:01:08]}  Rb8 {[%clk 0:00:02]} 32. Nxd5 {[%clk 0:01:06]}  exd5 {[%clk 0:00:02]} 33. a7 {[%clk 0:01:05]}  Rb1+ {[%clk 0:00:03]} 34. Kf2 {[%clk 0:01:05]}  Ra1 {[%clk 0:00:04]} 35. Rxg7 {[%clk 0:01:05]}  Kc5 {[%clk 0:00:04]} 36. Rc7+ {[%clk 0:01:04]}  Kb6 {[%clk 0:00:03]} 37. Rxh7 {[%clk 0:01:04]}  Ra2+ {[%clk 0:00:01]} 38. Kg3 {[%clk 0:01:03]}  Ra3 {[%clk 0:00:01]} 39. Kg4 {[%clk 0:01:03]} 1-0


[Site "https://www.chess.com"]